[Event "Early-Titled-Tuesday-Blitz-March-26-2024"]
[Site "Chess.com"]
[Date "2024.03.26"]
[Round "2"]
[White "ContrVersia"]
[Black "Bykov_Egor"]
[Result "0-1"]
[WhiteElo "2913"]
[BlackElo "2642"]
[TimeControl "180+1"]
[EndTime "8:16:07 PDT"]
[Termination "Bykov_Egor won by resignation"]

1. Nf3 {[%clk 0:02:58.9]} 1... Nf6 {[%clk 0:01:24.9]} 2. c4 {[%clk 0:02:47.8]}
2... g6 {[%clk 0:01:25.3]} 3. g3 {[%clk 0:02:48.2]} 3... Bg7 {[%clk 0:01:25.9]}
4. Bg2 {[%clk 0:02:49.1]} 4... O-O {[%clk 0:01:26.1]} 5. O-O {[%clk 0:02:50]}
5... d6 {[%clk 0:01:26.3]} 6. d4 {[%clk 0:02:50.2]} 6... Nc6 {[%clk 0:01:26]} 7.
Nc3 {[%clk 0:02:50.2]} 7... a6 {[%clk 0:01:26.5]} 8. d5 {[%clk 0:02:50.5]} 8...
Na5 {[%clk 0:01:20.1]} 9. b3 {[%clk 0:02:50.5]} 9... c5 {[%clk 0:01:09.8]} 10.
dxc6 {[%clk 0:02:51.4]} 10... Nxc6 {[%clk 0:01:08.9]} 11. Bb2 {[%clk 0:02:51.4]}
11... Bg4 {[%clk 0:00:55.9]} 12. Qc1 {[%clk 0:02:50.8]} 12... Rc8 {[%clk
0:00:54.2]} 13. Rd1 {[%clk 0:02:50.8]} 13... Qa5 {[%clk 0:00:53.2]} 14. Nd5
{[%clk 0:02:46.5]} 14... Nxd5 {[%clk 0:00:50.6]} 15. Rxd5 {[%clk 0:02:47.4]}
15... Qc7 {[%clk 0:00:42.8]} 16. Bxg7 {[%clk 0:02:47]} 16... Kxg7 {[%clk
0:00:43.7]} 17. Qb2+ {[%clk 0:02:43.9]} 17... f6 {[%clk 0:00:43.9]} 18. Rc1
{[%clk 0:02:41.9]} 18... Bxf3 {[%clk 0:00:32.2]} 19. Bxf3 {[%clk 0:02:41.7]}
19... Ne5 {[%clk 0:00:32.9]} 20. Bg2 {[%clk 0:02:41.9]} 20... b5 {[%clk
0:00:31.5]} 21. c5 {[%clk 0:02:38.5]} 21... dxc5 {[%clk 0:00:30.3]} 22. Qa3
{[%clk 0:02:30.8]} 22... c4 {[%clk 0:00:23.4]} 23. Qxa6 {[%clk 0:02:26.2]} 23...
c3 {[%clk 0:00:14.6]} 24. Qxb5 {[%clk 0:02:22.1]} 24... Qa7 {[%clk 0:00:14]} 25.
Qb4 {[%clk 0:02:15.6]} 25... Qxa2 {[%clk 0:00:13.3]} 26. Qxe7+ {[%clk
0:02:06.6]} 26... Rf7 {[%clk 0:00:13.7]} 27. Qe6 {[%clk 0:02:07]} 27... Rc6
{[%clk 0:00:13.4]} 28. Rd6 {[%clk 0:02:05.2]} 28... Rxd6 {[%clk 0:00:10.4]} 29.
Qxd6 {[%clk 0:02:06.1]} 29... Qxe2 {[%clk 0:00:08.9]} 30. Qc5 {[%clk 0:02:01.2]}
30... Nd3 {[%clk 0:00:08.6]} 31. Qxc3 {[%clk 0:01:54.3]} 31... Qxf2+ {[%clk
0:00:09]} 32. Kh1 {[%clk 0:01:54]} 32... Nxc1 {[%clk 0:00:09.7]} 33. Qxc1 {[%clk
0:01:54.9]} 33... Re7 {[%clk 0:00:10.1]} 34. Bf1 {[%clk 0:01:40.7]} 34... Re1
{[%clk 0:00:09.3]} 35. Qc7+ {[%clk 0:01:41.4]} 35... Kh6 {[%clk 0:00:09.4]} 0-1

[Event "Early-Titled-Tuesday-Blitz-March-26-2024"]
[Site "Chess.com"]
[Date "2024.03.26"]
[Round "2"]
[White "ViIIagra"]
[Black "CADMartin"]
[Result "0-1"]
[WhiteElo "2875"]
[BlackElo "2470"]
[TimeControl "180+1"]
[EndTime "8:16:08 PDT"]
[Termination "CADMartin won by resignation"]

1. b3 {[%clk 0:03:00.9]} 1... e5 {[%clk 0:02:57.6]} 2. g3 {[%clk 0:03:00.5]}
2... d5 {[%clk 0:02:54.3]} 3. Bg2 {[%clk 0:03:00.3]} 3... Nf6 {[%clk 0:02:52]}
4. Bb2 {[%clk 0:03:00.4]} 4... Bd6 {[%clk 0:02:51.9]} 5. e3 {[%clk 0:03:00.1]}
5... O-O {[%clk 0:02:51.2]} 6. d3 {[%clk 0:03:00.8]} 6... c5 {[%clk 0:02:47.9]}
7. Ne2 {[%clk 0:03:00.8]} 7... Nc6 {[%clk 0:02:47.4]} 8. O-O {[%clk 0:03:01.5]}
8... Re8 {[%clk 0:02:45.8]} 9. Nd2 {[%clk 0:03:01.9]} 9... Bf5 {[%clk
0:02:42.6]} 10. e4 {[%clk 0:03:01.6]} 10... Be6 {[%clk 0:02:41.5]} 11. c4 {[%clk
0:02:54.6]} 11... d4 {[%clk 0:02:33.1]} 12. f4 {[%clk 0:02:54.7]} 12... Ng4
{[%clk 0:02:32.7]} 13. f5 {[%clk 0:02:55.6]} 13... Ne3 {[%clk 0:02:32.7]} 14.
Qc1 {[%clk 0:02:56]} 14... Nxf1 {[%clk 0:02:32.8]} 15. Nxf1 {[%clk 0:02:56.9]}
15... Bd7 {[%clk 0:02:32.3]} 16. g4 {[%clk 0:02:57.2]} 16... Be7 {[%clk
0:02:31.6]} 17. Kh1 {[%clk 0:02:50.2]} 17... Bg5 {[%clk 0:02:28.7]} 18. Qd1
{[%clk 0:02:50.8]} 18... a6 {[%clk 0:02:02.9]} 19. Ng1 {[%clk 0:02:37.3]} 19...
Bf4 {[%clk 0:01:58.4]} 20. Nf3 {[%clk 0:02:36.4]} 20... b5 {[%clk 0:01:56.3]}
21. Ng3 {[%clk 0:02:36.6]} 21... Bxg3 {[%clk 0:01:51.6]} 22. hxg3 {[%clk
0:02:36.7]} 22... g5 {[%clk 0:01:51.4]} 23. Rc1 {[%clk 0:02:29.2]} 23... b4
{[%clk 0:01:50.1]} 24. Kg1 {[%clk 0:02:25]} 24... a5 {[%clk 0:01:48.9]} 25. Kf2
{[%clk 0:02:25.9]} 25... f6 {[%clk 0:01:48.7]} 26. Qh1 {[%clk 0:02:24.9]} 26...
a4 {[%clk 0:01:48.9]} 27. Rc2 {[%clk 0:02:09.3]} 27... Qe7 {[%clk 0:01:42.3]}
28. Bf1 {[%clk 0:02:09.2]} 28... axb3 {[%clk 0:01:41.2]} 29. axb3 {[%clk
0:02:10.1]} 29... Na5 {[%clk 0:01:41.8]} 30. Nd2 {[%clk 0:02:08.5]} 30... Nc6
{[%clk 0:01:34.2]} 31. Be2 {[%clk 0:02:08.3]} 31... Ra2 {[%clk 0:01:30.7]} 32.
Qb1 {[%clk 0:02:08.4]} 32... Rea8 {[%clk 0:01:30.6]} 33. Nf3 {[%clk 0:02:05.6]}
33... Be8 {[%clk 0:01:28.6]} 34. Bd1 {[%clk 0:02:05.6]} 34... Qg7 {[%clk
0:01:25.4]} 35. Kg2 {[%clk 0:02:04.1]} 35... h5 {[%clk 0:01:24.8]} 36. Nh2
{[%clk 0:02:03]} 36... Qh6 {[%clk 0:01:22.7]} 37. Kg1 {[%clk 0:01:47.9]} 37...
h4 {[%clk 0:01:18.7]} 38. gxh4 {[%clk 0:01:48.1]} 38... gxh4 {[%clk 0:01:19.6]}
39. Bc1 {[%clk 0:01:45.9]} 39... Ra1 {[%clk 0:01:17.5]} 40. Qxa1 {[%clk
0:01:35.4]} 40... Rxa1 {[%clk 0:01:15.7]} 41. Bxh6 {[%clk 0:01:36.3]} 41...
Rxd1+ {[%clk 0:01:15.7]} 42. Kg2 {[%clk 0:01:36.8]} 42... Rxd3 {[%clk
0:01:12.6]} 43. Ra2 {[%clk 0:01:37.4]} 43... Rxb3 {[%clk 0:01:11.3]} 44. Ra8
{[%clk 0:01:37.6]} 44... Kf7 {[%clk 0:01:11.3]} 45. g5 {[%clk 0:01:37.4]} 45...
fxg5 {[%clk 0:01:09.2]} 46. Nf3 {[%clk 0:01:37.9]} 46... g4 {[%clk 0:01:02]} 47.
Ng5+ {[%clk 0:01:34.3]} 47... Ke7 {[%clk 0:01:00.3]} 48. Bg7 {[%clk 0:01:34.6]}
48... Rb2+ {[%clk 0:00:58.9]} 49. Kg1 {[%clk 0:01:34.6]} 49... d3 {[%clk
0:00:58.8]} 50. f6+ {[%clk 0:01:35.5]} 50... Kd7 {[%clk 0:00:56.8]} 51. Kf1
{[%clk 0:01:31]} 51... Rb1+ {[%clk 0:00:54.5]} 52. Kf2 {[%clk 0:01:29.7]} 52...
d2 {[%clk 0:00:55]} 0-1

[Event "Early-Titled-Tuesday-Blitz-March-26-2024"]
[Site "Chess.com"]
[Date "2024.03.26"]
[Round "2"]
[White "MarcoRiehle"]
[Black "DucksParadise"]
[Result "1/2-1/2"]
[WhiteElo "2798"]
[BlackElo "2493"]
[TimeControl "180+1"]
[EndTime "8:16:14 PDT"]
[Termination "Game drawn by repetition"]

1. e4 {[%clk 0:03:00.9]} 1... d5 {[%clk 0:02:56.2]} 2. exd5 {[%clk 0:03:00.2]}
2... Qxd5 {[%clk 0:02:57.1]} 3. Nc3 {[%clk 0:02:58.6]} 3... Qd6 {[%clk
0:02:57.3]} 4. d4 {[%clk 0:02:58.7]} 4... Nf6 {[%clk 0:02:57]} 5. Nf3 {[%clk
0:02:59.2]} 5... Nc6 {[%clk 0:02:57]} 6. Nb5 {[%clk 0:02:55.4]} 6... Qd8 {[%clk
0:02:56.4]} 7. Bf4 {[%clk 0:02:51.9]} 7... Nd5 {[%clk 0:02:54.6]} 8. Bg3 {[%clk
0:02:52.1]} 8... a6 {[%clk 0:02:51.7]} 9. Nc3 {[%clk 0:02:51.6]} 9... Bg4 {[%clk
0:02:46.4]} 10. Be2 {[%clk 0:02:49.8]} 10... e6 {[%clk 0:02:43.4]} 11. Nxd5
{[%clk 0:02:48.4]} 11... Qxd5 {[%clk 0:02:42.7]} 12. c3 {[%clk 0:02:47.4]} 12...
Bd6 {[%clk 0:02:39.9]} 13. O-O {[%clk 0:02:45.5]} 13... Bxg3 {[%clk 0:02:39.2]}
14. hxg3 {[%clk 0:02:46.4]} 14... O-O {[%clk 0:02:37.4]} 15. Ne5 {[%clk
0:02:44.4]} 15... Nxe5 {[%clk 0:02:25.4]} 16. Bxg4 {[%clk 0:02:42.7]} 16... Nxg4
{[%clk 0:02:26.3]} 17. Qxg4 {[%clk 0:02:42.7]} 17... c5 {[%clk 0:02:24.2]} 18.
Rfd1 {[%clk 0:02:38.5]} 18... cxd4 {[%clk 0:02:23.7]} 19. Rxd4 {[%clk
0:02:38.4]} 19... Qa5 {[%clk 0:02:19.9]} 20. a4 {[%clk 0:02:35.5]} 20... Rfd8
{[%clk 0:02:17.3]} 21. Rad1 {[%clk 0:02:35.4]} 21... Rxd4 {[%clk 0:02:15.5]} 22.
Qxd4 {[%clk 0:02:34.2]} 22... g6 {[%clk 0:02:12.3]} 23. Qc4 {[%clk 0:02:30.1]}
23... Rd8 {[%clk 0:02:07.8]} 24. Rxd8+ {[%clk 0:02:25.5]} 24... Qxd8 {[%clk
0:02:08.7]} 25. Kh2 {[%clk 0:02:19.7]} 25... Qd1 {[%clk 0:02:00.7]} 26. f3
{[%clk 0:02:14.7]} 26... Kg7 {[%clk 0:01:53.6]} 27. a5 {[%clk 0:02:11.9]} 27...
Qd5 {[%clk 0:01:49.1]} 28. Qxd5 {[%clk 0:02:01.9]} 28... exd5 {[%clk 0:01:50]}
29. Kg1 {[%clk 0:01:59.7]} 29... Kf6 {[%clk 0:01:49.8]} 30. Kf2 {[%clk
0:02:00.3]} 30... Ke5 {[%clk 0:01:49.7]} 31. Ke3 {[%clk 0:02:00.9]} 31... h5
{[%clk 0:01:43.8]} 32. f4+ {[%clk 0:01:52.7]} 32... Kd6 {[%clk 0:01:36.3]} 33.
Kd4 {[%clk 0:01:52.1]} 33... f6 {[%clk 0:01:36.1]} 34. b3 {[%clk 0:01:47.3]}
34... Kc6 {[%clk 0:01:36.3]} 35. c4 {[%clk 0:01:44.1]} 35... dxc4 {[%clk
0:01:36.2]} 36. Kxc4 {[%clk 0:01:45]} 36... Kd6 {[%clk 0:01:35.2]} 37. Kd4
{[%clk 0:01:39.8]} 37... Kc6 {[%clk 0:01:34.7]} 38. Kc4 {[%clk 0:01:36.2]} 38...
Kd6 {[%clk 0:01:34.9]} 39. b4 {[%clk 0:01:35.6]} 39... Kc6 {[%clk 0:01:32.6]}
40. Kd4 {[%clk 0:01:33.2]} 40... Kb5 {[%clk 0:01:14.4]} 41. Kc3 {[%clk
0:01:27.4]} 41... b6 {[%clk 0:01:00.2]} 42. axb6 {[%clk 0:01:25.2]} 42... Kxb6
{[%clk 0:01:01.1]} 43. Kd4 {[%clk 0:01:21.9]} 43... Kb5 {[%clk 0:01:01]} 44. Kc3
{[%clk 0:01:22.3]} 44... Kb6 {[%clk 0:00:48]} 45. Kc4 {[%clk 0:01:21.7]} 45...
Kc6 {[%clk 0:00:48.1]} 46. Kd4 {[%clk 0:01:22.2]} 46... Kb5 {[%clk 0:00:48.7]}
47. Kc3 {[%clk 0:01:19.4]} 47... Kb6 {[%clk 0:00:48.6]} 1/2-1/2

[Event "Early-Titled-Tuesday-Blitz-March-26-2024"]
[Site "Chess.com"]
[Date "2024.03.26"]
[Round "2"]
[White "Christ_is_alive"]
[Black "szachuspl"]
[Result "0-1"]
[WhiteElo "2331"]
[BlackElo "2538"]
[TimeControl "180+1"]
[EndTime "8:16:15 PDT"]
[Termination "szachuspl won on time"]

1. e4 {[%clk 0:02:50.5]} 1... d5 {[%clk 0:02:58.1]} 2. exd5 {[%clk 0:02:50]}
2... Nf6 {[%clk 0:02:58.2]} 3. Bb5+ {[%clk 0:02:49.2]} 3... Nbd7 {[%clk
0:02:56.8]} 4. Nf3 {[%clk 0:02:48.1]} 4... a6 {[%clk 0:02:57.3]} 5. Be2 {[%clk
0:02:47.6]} 5... Nb6 {[%clk 0:02:54.4]} 6. d4 {[%clk 0:02:47.7]} 6... Nbxd5
{[%clk 0:02:54.4]} 7. c4 {[%clk 0:02:46.2]} 7... Nb6 {[%clk 0:02:54.5]} 8. Nc3
{[%clk 0:02:45.1]} 8... Bf5 {[%clk 0:02:53.2]} 9. O-O {[%clk 0:02:38]} 9... e6
{[%clk 0:02:53.5]} 10. a4 {[%clk 0:02:29.5]} 10... a5 {[%clk 0:02:52.3]} 11. b3
{[%clk 0:02:12.5]} 11... Bb4 {[%clk 0:02:50.3]} 12. Na2 {[%clk 0:01:51.4]} 12...
Be7 {[%clk 0:02:50.1]} 13. Be3 {[%clk 0:01:48.8]} 13... O-O {[%clk 0:02:49.7]}
14. Nc3 {[%clk 0:01:46.4]} 14... Bb4 {[%clk 0:02:48.9]} 15. Na2 {[%clk
0:01:45.1]} 15... Be7 {[%clk 0:02:48.9]} 16. Nc3 {[%clk 0:01:42.8]} 16... Ne4
{[%clk 0:02:48.8]} 17. Nxe4 {[%clk 0:01:38.2]} 17... Bxe4 {[%clk 0:02:49.7]} 18.
Ne5 {[%clk 0:01:25.6]} 18... f6 {[%clk 0:02:40.1]} 19. Nf3 {[%clk 0:01:20.2]}
19... Bb4 {[%clk 0:02:39.2]} 20. Bd3 {[%clk 0:01:17]} 20... Bxd3 {[%clk
0:02:35.9]} 21. Qxd3 {[%clk 0:01:17.9]} 21... e5 {[%clk 0:02:30]} 22. c5 {[%clk
0:01:00.2]} 22... Bxc5 {[%clk 0:02:20.5]} 23. b4 {[%clk 0:00:43.7]} 23... Bxb4
{[%clk 0:02:20]} 24. Rac1 {[%clk 0:00:28.9]} 24... exd4 {[%clk 0:02:18.6]} 25.
Nxd4 {[%clk 0:00:27]} 25... c5 {[%clk 0:02:07.4]} 26. Qb3+ {[%clk 0:00:22]}
26... Qd5 {[%clk 0:02:07.3]} 27. Qxd5+ {[%clk 0:00:20.5]} 27... Nxd5 {[%clk
0:02:07.4]} 28. Ne6 {[%clk 0:00:21.2]} 28... Nxe3 {[%clk 0:02:07.7]} 29. fxe3
{[%clk 0:00:15.6]} 29... Rfc8 {[%clk 0:02:07.8]} 30. Rc4 {[%clk 0:00:11.4]}
30... Ra6 {[%clk 0:02:06.7]} 31. Nf4 {[%clk 0:00:10]} 31... Rd6 {[%clk
0:02:06.8]} 32. Nh5 {[%clk 0:00:09.3]} 32... Re8 {[%clk 0:02:04.8]} 33. Rg4
{[%clk 0:00:09.1]} 33... Kh8 {[%clk 0:01:55.2]} 34. Rxg7 {[%clk 0:00:04.7]}
34... Rd5 {[%clk 0:01:48]} 35. Nxf6 {[%clk 0:00:03.9]} 35... Kxg7 {[%clk
0:01:47]} 36. Nxe8+ {[%clk 0:00:03.9]} 36... Kg6 {[%clk 0:01:47.2]} 37. Nc7
{[%clk 0:00:02.7]} 37... Rd2 {[%clk 0:01:46.3]} 38. h4 {[%clk 0:00:01.4]} 38...
h5 {[%clk 0:01:44.9]} 0-1

[Event "Early-Titled-Tuesday-Blitz-March-26-2024"]
[Site "Chess.com"]
[Date "2024.03.26"]
[Round "2"]
[White "subham777"]
[Black "aljado"]
[Result "0-1"]
[WhiteElo "2565"]
[BlackElo "2165"]
[TimeControl "180+1"]
[EndTime "8:16:16 PDT"]
[Termination "aljado won by resignation"]

1. e4 {[%clk 0:03:00.9]} 1... c5 {[%clk 0:02:59.8]} 2. Nf3 {[%clk 0:03:00.8]}
2... e6 {[%clk 0:02:59.7]} 3. g3 {[%clk 0:03:00.6]} 3... Nc6 {[%clk 0:02:57.9]}
4. Bg2 {[%clk 0:03:00.1]} 4... Nf6 {[%clk 0:02:57]} 5. d3 {[%clk 0:02:58.7]}
5... d5 {[%clk 0:02:56.7]} 6. exd5 {[%clk 0:02:58.9]} 6... exd5 {[%clk
0:02:52.1]} 7. O-O {[%clk 0:02:59.4]} 7... Be7 {[%clk 0:02:52]} 8. c3 {[%clk
0:02:59.3]} 8... O-O {[%clk 0:02:51.4]} 9. d4 {[%clk 0:02:59.4]} 9... Bg4 {[%clk
0:02:48.2]} 10. h3 {[%clk 0:02:58.5]} 10... Bh5 {[%clk 0:02:44.5]} 11. g4 {[%clk
0:02:55.5]} 11... Bg6 {[%clk 0:02:44.1]} 12. Ne5 {[%clk 0:02:55.4]} 12... cxd4
{[%clk 0:02:39.5]} 13. cxd4 {[%clk 0:02:52.8]} 13... Bd6 {[%clk 0:02:24.4]} 14.
Nc3 {[%clk 0:02:30.8]} 14... Nxe5 {[%clk 0:02:19.3]} 15. dxe5 {[%clk 0:02:28.9]}
15... Bxe5 {[%clk 0:02:15.6]} 16. Nxd5 {[%clk 0:02:28.1]} 16... Nxd5 {[%clk
0:02:04.9]} 17. Bxd5 {[%clk 0:02:26.4]} 17... Qh4 {[%clk 0:01:46.9]} 18. Bg2
{[%clk 0:02:07.6]} 18... Rfd8 {[%clk 0:01:43.5]} 19. Qb3 {[%clk 0:02:00.8]}
19... Rd3 {[%clk 0:01:26.8]} 20. Qxb7 {[%clk 0:01:51.8]} 20... Rb8 {[%clk
0:01:25.6]} 21. Qxa7 {[%clk 0:00:09.9]} 21... Rxh3 {[%clk 0:01:15.6]} 22. Bg5
{[%clk 0:00:04.9]} 22... Rh1+ {[%clk 0:01:11.2]} 23. Bxh1 {[%clk 0:00:02.8]} 0-1

[Event "Early-Titled-Tuesday-Blitz-March-26-2024"]
[Site "Chess.com"]
[Date "2024.03.26"]
[Round "2"]
[White "ninguno46"]
[Black "BallottiLuca"]
[Result "1-0"]
[WhiteElo "2554"]
[BlackElo "2363"]
[TimeControl "180+1"]
[EndTime "8:16:29 PDT"]
[Termination "ninguno46 won by resignation"]

1. e4 {[%clk 0:03:00.9]} 1... c6 {[%clk 0:02:59.9]} 2. d4 {[%clk 0:03:00.5]}
2... d5 {[%clk 0:02:59.8]} 3. exd5 {[%clk 0:03:01]} 3... cxd5 {[%clk 0:03:00.7]}
4. Bd3 {[%clk 0:03:01]} 4... Nf6 {[%clk 0:02:58.5]} 5. c3 {[%clk 0:03:00.7]}
5... Bg4 {[%clk 0:02:56.2]} 6. Qb3 {[%clk 0:03:00.5]} 6... Qc7 {[%clk
0:02:54.6]} 7. h3 {[%clk 0:03:00.6]} 7... Bd7 {[%clk 0:02:53.3]} 8. Nf3 {[%clk
0:02:48.1]} 8... e6 {[%clk 0:02:52.3]} 9. O-O {[%clk 0:02:46.8]} 9... Bd6 {[%clk
0:02:52.5]} 10. Ne5 {[%clk 0:02:42.2]} 10... O-O {[%clk 0:02:10.9]} 11. f4
{[%clk 0:02:39.2]} 11... Bc6 {[%clk 0:02:06.2]} 12. Nd2 {[%clk 0:02:38.2]} 12...
Nbd7 {[%clk 0:02:05.6]} 13. Ndf3 {[%clk 0:02:37.6]} 13... Ne4 {[%clk 0:02:04.6]}
14. Be3 {[%clk 0:02:35.7]} 14... f6 {[%clk 0:02:01.8]} 15. Nxd7 {[%clk
0:02:24.5]} 15... Qxd7 {[%clk 0:01:57.6]} 16. Nd2 {[%clk 0:02:19.7]} 16... Nxd2
{[%clk 0:01:53.1]} 17. Bxd2 {[%clk 0:02:17.1]} 17... b5 {[%clk 0:01:51.8]} 18.
Qc2 {[%clk 0:02:14]} 18... g6 {[%clk 0:01:47.6]} 19. Rae1 {[%clk 0:02:11.2]}
19... Rae8 {[%clk 0:01:44.8]} 20. b4 {[%clk 0:02:04.9]} 20... Kg7 {[%clk
0:01:38.4]} 21. Qd1 {[%clk 0:02:01.2]} 21... a5 {[%clk 0:01:30.4]} 22. a3 {[%clk
0:02:00.6]} 22... Ra8 {[%clk 0:01:28.1]} 23. Qg4 {[%clk 0:01:56.1]} 23... f5
{[%clk 0:01:20.2]} 24. Qe2 {[%clk 0:01:53]} 24... Kf7 {[%clk 0:01:16.5]} 25. Ra1
{[%clk 0:01:51.5]} 25... Ra7 {[%clk 0:01:10]} 26. a4 {[%clk 0:01:46.7]} 26...
axb4 {[%clk 0:00:41.3]} 27. axb5 {[%clk 0:01:43.9]} 27... Rxa1 {[%clk
0:00:42.2]} 28. Rxa1 {[%clk 0:01:42]} 28... Ra8 {[%clk 0:00:38.7]} 29. Rxa8
{[%clk 0:01:33.3]} 29... Bxa8 {[%clk 0:00:39.6]} 30. cxb4 {[%clk 0:01:30.8]}
30... Qa7 {[%clk 0:00:40.2]} 31. Qe3 {[%clk 0:01:29.2]} 31... Bb7 {[%clk
0:00:29.3]} 32. g4 {[%clk 0:01:20.9]} 32... Qa3 {[%clk 0:00:27.4]} 33. gxf5
{[%clk 0:01:19.5]} 33... gxf5 {[%clk 0:00:25.6]} 34. Qf3 {[%clk 0:01:15.5]}
34... Kg6 {[%clk 0:00:19.5]} 35. Bxf5+ {[%clk 0:01:12.6]} 1-0

[Event "Early-Titled-Tuesday-Blitz-March-26-2024"]
[Site "Chess.com"]
[Date "2024.03.26"]
[Round "2"]
[White "vladgoncharov"]
[Black "Yaacovn"]
[Result "0-1"]
[WhiteElo "2616"]
[BlackElo "2912"]
[TimeControl "180+1"]
[EndTime "8:16:46 PDT"]
[Termination "Yaacovn won by checkmate"]

1. d4 {[%clk 0:03:00.9]} 1... Nf6 {[%clk 0:02:59.9]} 2. c4 {[%clk 0:03:00.4]}
2... e5 {[%clk 0:02:55.7]} 3. dxe5 {[%clk 0:02:59.6]} 3... Ne4 {[%clk
0:02:55.1]} 4. Nf3 {[%clk 0:02:59.4]} 4... Nc6 {[%clk 0:02:54.9]} 5. Bf4 {[%clk
0:02:51.7]} 5... Bb4+ {[%clk 0:02:52.6]} 6. Nbd2 {[%clk 0:02:50.7]} 6... g5
{[%clk 0:02:49.8]} 7. Qc2 {[%clk 0:02:38]} 7... d5 {[%clk 0:02:48.1]} 8. cxd5
{[%clk 0:02:22.6]} 8... Qxd5 {[%clk 0:02:36.8]} 9. Nxg5 {[%clk 0:02:07.6]} 9...
Nxd2 {[%clk 0:02:23.3]} 10. Bxd2 {[%clk 0:02:02.7]} 10... Nd4 {[%clk 0:02:20.3]}
11. Qd3 {[%clk 0:01:44.5]} 11... Bf5 {[%clk 0:02:00]} 12. e4 {[%clk 0:01:41.1]}
12... Bxd2+ {[%clk 0:01:59.5]} 13. Kxd2 {[%clk 0:01:32.2]} 13... Qxe5 {[%clk
0:01:56.1]} 14. Ke3 {[%clk 0:01:10.3]} 14... O-O-O {[%clk 0:01:41.1]} 15. Nxf7
{[%clk 0:00:41.1]} 15... Qc5 {[%clk 0:01:35.8]} 16. Qc4 {[%clk 0:00:23.8]} 16...
Nc2+ {[%clk 0:01:25.6]} 17. Kf3 {[%clk 0:00:20.8]} 17... Bg4+ {[%clk 0:01:18]}
18. Kg3 {[%clk 0:00:16.8]} 18... Qb6 {[%clk 0:00:48.8]} 19. Qxc2 {[%clk
0:00:09.7]} 19... Rhg8 {[%clk 0:00:47.7]} 20. Nxd8 {[%clk 0:00:03.7]} 20... Bd1+
{[%clk 0:00:45.6]} 21. Kf4 {[%clk 0:00:03.5]} 21... Qh6+ {[%clk 0:00:42.9]} 22.
Ke5 {[%clk 0:00:01.9]} 22... Qd6+ {[%clk 0:00:40.5]} 23. Kf5 {[%clk 0:00:01]}
23... Bg4# {[%clk 0:00:40.3]} 0-1

[Event "Early-Titled-Tuesday-Blitz-March-26-2024"]
[Site "Chess.com"]
[Date "2024.03.26"]
[Round "2"]
[White "gpsji27"]
[Black "santosalberto1987"]
[Result "1/2-1/2"]
[WhiteElo "2359"]
[BlackElo "2532"]
[TimeControl "180+1"]
[EndTime "8:16:46 PDT"]
[Termination "Game drawn by repetition"]

1. d4 {[%clk 0:03:00.9]} 1... Nf6 {[%clk 0:02:59.3]} 2. Nf3 {[%clk 0:03:00.2]}
2... d6 {[%clk 0:02:56.8]} 3. c4 {[%clk 0:02:56.1]} 3... Bf5 {[%clk 0:02:53.7]}
4. Nc3 {[%clk 0:02:53.3]} 4... g6 {[%clk 0:02:48]} 5. Bg5 {[%clk 0:02:47.4]}
5... Nbd7 {[%clk 0:02:45.8]} 6. e3 {[%clk 0:02:46.6]} 6... Ne4 {[%clk
0:02:45.3]} 7. Nxe4 {[%clk 0:02:39.6]} 7... Bxe4 {[%clk 0:02:46.2]} 8. Nd2
{[%clk 0:02:39.7]} 8... h6 {[%clk 0:02:46.2]} 9. Nxe4 {[%clk 0:02:31.9]} 9...
hxg5 {[%clk 0:02:46.2]} 10. Nxg5 {[%clk 0:02:32.8]} 10... Bg7 {[%clk 0:02:46.5]}
11. Bd3 {[%clk 0:02:21.5]} 11... c5 {[%clk 0:02:46.5]} 12. Nf3 {[%clk
0:02:15.4]} 12... cxd4 {[%clk 0:02:43.9]} 13. exd4 {[%clk 0:02:16.3]} 13... Qa5+
{[%clk 0:02:40.2]} 14. Qd2 {[%clk 0:02:09.5]} 14... Qxd2+ {[%clk 0:02:40.1]} 15.
Kxd2 {[%clk 0:02:10.4]} 15... e6 {[%clk 0:02:38.6]} 16. Rae1 {[%clk 0:02:05.9]}
16... O-O {[%clk 0:02:37.4]} 17. h4 {[%clk 0:01:59.8]} 17... Nf6 {[%clk
0:02:35.2]} 18. Ng5 {[%clk 0:01:56.3]} 18... Ng4 {[%clk 0:02:30.5]} 19. f3
{[%clk 0:01:51.7]} 19... Nf2 {[%clk 0:02:27.6]} 20. Rhf1 {[%clk 0:01:49.5]}
20... Bxd4 {[%clk 0:02:27.3]} 21. Bc2 {[%clk 0:01:38.3]} 21... Rac8 {[%clk
0:02:24.1]} 22. Bb3 {[%clk 0:01:33.9]} 22... a6 {[%clk 0:02:11.7]} 23. Re2
{[%clk 0:01:22.3]} 23... b5 {[%clk 0:02:09.4]} 24. cxb5 {[%clk 0:01:16.4]} 24...
axb5 {[%clk 0:02:10.3]} 25. Nxe6 {[%clk 0:01:06.1]} 25... fxe6 {[%clk
0:02:05.7]} 26. Bxe6+ {[%clk 0:01:07]} 26... Kg7 {[%clk 0:02:04.9]} 27. Bxc8
{[%clk 0:01:05.8]} 27... Rxc8 {[%clk 0:02:03.3]} 28. Rexf2 {[%clk 0:01:05.4]}
28... Bxf2 {[%clk 0:02:03.2]} 29. Rxf2 {[%clk 0:01:06.3]} 29... Kf6 {[%clk
0:02:02.3]} 30. Re2 {[%clk 0:01:02.6]} 30... b4 {[%clk 0:02:01.5]} 31. Re4
{[%clk 0:01:01.7]} 31... Ra8 {[%clk 0:02:00.7]} 32. Rxb4 {[%clk 0:00:59.9]}
32... Rxa2 {[%clk 0:02:01.3]} 33. Ke3 {[%clk 0:00:59.7]} 33... Ra1 {[%clk
0:02:00.6]} 34. Kf4 {[%clk 0:00:57]} 34... Rg1 {[%clk 0:01:56.2]} 35. g4 {[%clk
0:00:55]} 35... Rh1 {[%clk 0:01:54.5]} 36. g5+ {[%clk 0:00:34.1]} 36... Ke6
{[%clk 0:01:54.3]} 37. Kg4 {[%clk 0:00:31.2]} 37... d5 {[%clk 0:01:54.3]} 38.
Rb6+ {[%clk 0:00:31]} 38... Ke5 {[%clk 0:01:54]} 39. Rxg6 {[%clk 0:00:30.2]}
39... d4 {[%clk 0:01:54.3]} 40. Rg8 {[%clk 0:00:30.1]} 40... d3 {[%clk
0:01:52.7]} 41. Rd8 {[%clk 0:00:30.1]} 41... Rd1 {[%clk 0:01:49.2]} 42. h5
{[%clk 0:00:20.6]} 42... d2 {[%clk 0:01:49.3]} 43. h6 {[%clk 0:00:19.2]} 43...
Rg1+ {[%clk 0:01:48.4]} 44. Kh5 {[%clk 0:00:19.4]} 44... d1=Q {[%clk 0:01:47.9]}
45. Rxd1 {[%clk 0:00:19.5]} 45... Rxd1 {[%clk 0:01:48.8]} 46. h7 {[%clk
0:00:19.7]} 46... Kf5 {[%clk 0:01:42.2]} 47. Kh6 {[%clk 0:00:19.5]} 47... Rd6+
{[%clk 0:01:40.1]} 48. Kg7 {[%clk 0:00:19.4]} 48... Rd7+ {[%clk 0:01:40.4]} 49.
Kg8 {[%clk 0:00:19.2]} 49... Rd8+ {[%clk 0:01:40.7]} 50. Kg7 {[%clk 0:00:19.3]}
50... Rd7+ {[%clk 0:01:41.1]} 51. Kg8 {[%clk 0:00:16.1]} 51... Rd8+ {[%clk
0:01:41.2]} 52. Kg7 {[%clk 0:00:15.5]} 52... Rd7+ {[%clk 0:01:41.3]} 1/2-1/2